[Event "Titled Tuesday Blitz November 15 Early 2022"]
[White "Petrosyan, Manuel"]
[Black "Ozates, Tuna"]
[WhiteFideId "13300857"]
[BlackFideId "6354521"]
[WhiteElo "2561"]
[BlackElo "2151"]
[Result "1-0"]
[Round "01"]
[TimeControl "180+1"]
[Date "2022.11.15"]
[WhiteClock "0:00:05"]
[BlackClock "0:00:02"]

1. Nf3 {[%clk 0:02:57]}  c5 {[%clk 0:02:59]} 2. g3 {[%clk 0:02:57]}  Nc6 {[%clk 0:02:59]} 3. Bg2 {[%clk 0:02:56]}  e5 {[%clk 0:02:59]} 4. e4 {[%clk 0:02:52]}  g6 {[%clk 0:03:00]} 5. O-O {[%clk 0:02:51]}  Bg7 {[%clk 0:03:00]} 6. Na3 {[%clk 0:02:47]}  Nge7 {[%clk 0:03:00]} 7. Nc4 {[%clk 0:02:46]}  d6 {[%clk 0:03:00]} 8. a4 {[%clk 0:02:45]}  O-O {[%clk 0:03:01]} 9. d3 {[%clk 0:02:36]}  h6 {[%clk 0:03:00]} 10. c3 {[%clk 0:02:25]}  Be6 {[%clk 0:02:59]} 11. Bd2 {[%clk 0:02:22]}  f5 {[%clk 0:02:49]} 12. exf5 {[%clk 0:02:22]}  gxf5 {[%clk 0:02:48]} 13. Re1 {[%clk 0:02:22]}  e4 {[%clk 0:02:37]} 14. Nh4 {[%clk 0:02:18]}  d5 {[%clk 0:02:37]} 15. Na3 {[%clk 0:02:18]}  Ne5 {[%clk 0:02:32]} 16. dxe4 {[%clk 0:01:47]}  fxe4 {[%clk 0:02:31]} 17. Be3 {[%clk 0:01:47]}  b6 {[%clk 0:01:59]} 18. Qd2 {[%clk 0:01:37]}  Kh7 {[%clk 0:01:54]} 19. c4 {[%clk 0:01:30]}  Nf3+ {[%clk 0:01:44]} 20. Bxf3 {[%clk 0:01:22]}  exf3 {[%clk 0:01:45]} 21. Bxc5 {[%clk 0:01:14]}  bxc5 {[%clk 0:01:39]} 22. Rxe6 {[%clk 0:01:13]}  Nf5 {[%clk 0:01:33]} 23. Nxf5 {[%clk 0:01:10]}  Rxf5 {[%clk 0:01:34]} 24. Qc2 {[%clk 0:00:36]}  Qg5 {[%clk 0:01:29]} 25. cxd5 {[%clk 0:00:36]}  Qg4 {[%clk 0:01:19]} 26. Nc4 {[%clk 0:00:36]}  Bd4 {[%clk 0:01:01]} 27. Nd6 {[%clk 0:00:36]}  Rf8 {[%clk 0:00:59]} 28. Nxf5 {[%clk 0:00:34]}  Rxf5 {[%clk 0:00:59]} 29. Re7+ {[%clk 0:00:25]}  Kg6 {[%clk 0:00:44]} 30. Qd3 {[%clk 0:00:16]}  c4 {[%clk 0:00:24]} 31. Qf1 {[%clk 0:00:09]}  h5 {[%clk 0:00:16]} 32. Rae1 {[%clk 0:00:08]}  h4 {[%clk 0:00:11]} 33. R1e6+ {[%clk 0:00:09]}  Rf6 {[%clk 0:00:10]} 34. Re4 {[%clk 0:00:08]}  Bxf2+ {[%clk 0:00:04]} 35. Qxf2 {[%clk 0:00:07]}  Qg5 {[%clk 0:00:05]} 36. Re3 {[%clk 0:00:03]}  hxg3 {[%clk 0:00:04]} 37. Qxg3 {[%clk 0:00:03]}  f2+ {[%clk 0:00:05]} 38. Kf1 {[%clk 0:00:03]}  Rb6 {[%clk 0:00:03]} 39. Rg7+ {[%clk 0:00:03]}  Kxg7 {[%clk 0:00:02]} 40. Qxg5+ {[%clk 0:00:04]}  Kf7 {[%clk 0:00:02]} 41. Re7+ {[%clk 0:00:05]} 1-0


[Site "https://www.chess.com"]

[Event "Titled Tuesday Blitz November 15 Early 2022"]
[White "Petrovic, Aleksa"]
[Black "Iturrizaga Bonelli, Eduardo"]
[WhiteFideId "967629"]
[BlackFideId "3901211"]
[WhiteElo "2224"]
[BlackElo "2637"]
[Result "1/2-1/2"]
[Round "01"]
[TimeControl "180+1"]
[Date "2022.11.16"]
[WhiteClock "0:00:04"]
[BlackClock "0:01:01"]

1. d4 {[%clk 0:02:54]}  Nf6 {[%clk 0:02:59]} 2. c4 {[%clk 0:02:54]}  e6 {[%clk 0:03:00]} 3. Nf3 {[%clk 0:02:54]}  b6 {[%clk 0:02:59]} 4. g3 {[%clk 0:02:54]}  Bb7 {[%clk 0:03:00]} 5. Bg2 {[%clk 0:02:53]}  c5 {[%clk 0:03:00]} 6. d5 {[%clk 0:02:53]}  exd5 {[%clk 0:03:00]} 7. Nh4 {[%clk 0:02:53]}  g6 {[%clk 0:02:59]} 8. O-O {[%clk 0:02:54]}  Bg7 {[%clk 0:03:00]} 9. Nc3 {[%clk 0:02:53]}  O-O {[%clk 0:03:00]} 10. cxd5 {[%clk 0:02:53]}  Nxd5 {[%clk 0:03:01]} 11. Bxd5 {[%clk 0:02:50]}  Nc6 {[%clk 0:03:01]} 12. Nf3 {[%clk 0:02:46]}  Re8 {[%clk 0:03:00]} 13. Ng5 {[%clk 0:02:34]}  Re7 {[%clk 0:02:59]} 14. Nge4 {[%clk 0:02:30]}  h6 {[%clk 0:02:44]} 15. Nd6 {[%clk 0:02:23]}  Ba6 {[%clk 0:02:44]} 16. Qa4 {[%clk 0:02:16]}  Nb4 {[%clk 0:02:22]} 17. Bxa8 {[%clk 0:02:15]}  Qxa8 {[%clk 0:02:23]} 18. a3 {[%clk 0:02:09]}  Bxc3 {[%clk 0:02:23]} 19. axb4 {[%clk 0:01:58]}  Bxe2 {[%clk 0:02:24]} 20. Qxa7 {[%clk 0:01:32]}  Qxa7 {[%clk 0:02:25]} 21. Rxa7 {[%clk 0:01:32]}  Bxf1 {[%clk 0:02:25]} 22. Kxf1 {[%clk 0:01:32]}  Re1+ {[%clk 0:02:20]} 23. Kg2 {[%clk 0:01:32]}  Bd4 {[%clk 0:02:04]} 24. Be3 {[%clk 0:01:14]}  Bxe3 {[%clk 0:02:04]} 25. fxe3 {[%clk 0:01:15]}  Rxe3 {[%clk 0:01:59]} 26. bxc5 {[%clk 0:01:13]}  bxc5 {[%clk 0:01:58]} 27. Rxd7 {[%clk 0:01:12]}  Re2+ {[%clk 0:01:57]} 28. Kh3 {[%clk 0:01:11]}  f5 {[%clk 0:01:48]} 29. Rc7 {[%clk 0:01:03]}  Rd2 {[%clk 0:01:40]} 30. Ne8 {[%clk 0:00:45]}  g5 {[%clk 0:01:32]} 31. Nf6+ {[%clk 0:00:43]}  Kf8 {[%clk 0:01:31]} 32. Rxc5 {[%clk 0:00:33]}  g4+ {[%clk 0:01:29]} 33. Nxg4 {[%clk 0:00:34]}  fxg4+ {[%clk 0:01:30]} 34. Kxg4 {[%clk 0:00:34]}  Rxb2 {[%clk 0:01:25]} 35. h4 {[%clk 0:00:34]}  Rb3 {[%clk 0:01:18]} 36. Rf5+ {[%clk 0:00:23]}  Kg7 {[%clk 0:01:19]} 37. Rf3 {[%clk 0:00:22]}  Rb4+ {[%clk 0:01:18]} 38. Rf4 {[%clk 0:00:22]}  Rb3 {[%clk 0:01:19]} 39. Rf3 {[%clk 0:00:19]}  Rb4+ {[%clk 0:01:19]} 40. Kh3 {[%clk 0:00:19]}  Kg6 {[%clk 0:01:19]} 41. g4 {[%clk 0:00:19]}  Rb1 {[%clk 0:01:17]} 42. Ra3 {[%clk 0:00:17]}  Rh1+ {[%clk 0:01:15]} 43. Kg3 {[%clk 0:00:17]}  Rg1+ {[%clk 0:01:16]} 44. Kf3 {[%clk 0:00:17]}  Rf1+ {[%clk 0:01:16]} 45. Kg2 {[%clk 0:00:18]}  Rb1 {[%clk 0:01:17]} 46. Ra6+ {[%clk 0:00:17]}  Kg7 {[%clk 0:01:17]} 47. Kg3 {[%clk 0:00:17]}  Rb3+ {[%clk 0:01:17]} 48. Kf4 {[%clk 0:00:17]}  Rb4+ {[%clk 0:01:18]} 49. Kf5 {[%clk 0:00:17]}  Rb5+ {[%clk 0:01:18]} 50. Ke6 {[%clk 0:00:16]}  Rb4 {[%clk 0:01:18]} 51. Ra7+ {[%clk 0:00:11]}  Kg6 {[%clk 0:01:09]} 52. h5+ {[%clk 0:00:11]}  Kg5 {[%clk 0:01:09]} 53. Rg7+ {[%clk 0:00:12]}  Kh4 {[%clk 0:01:09]} 54. Kf5 {[%clk 0:00:12]}  Rb5+ {[%clk 0:01:07]} 55. Kg6 {[%clk 0:00:11]}  Kxg4 {[%clk 0:01:08]} 56. Kxh6+ {[%clk 0:00:10]}  Kh4 {[%clk 0:01:08]} 57. Rg1 {[%clk 0:00:04]}  Rb6+ {[%clk 0:01:06]} 58. Rg6 {[%clk 0:00:04]}  Rb8 {[%clk 0:01:05]} 59. Rg7 {[%clk 0:00:04]}  Rh8+ {[%clk 0:01:01]} 60. Kg6 {[%clk 0:00:04]}  Rxh5 {[%clk 0:01:01]} 61. Rh7 {[%clk 0:00:04]}  Rxh7 {[%clk 0:01:01]} 62. Kxh7 {[%clk 0:00:04]} 1/2-1/2


[Site "https://www.chess.com"]

[Event "Titled Tuesday Blitz November 15 Early 2022"]
[White "Pinheiro, Iung Alicio de O."]
[Black "Pg, Mohd Omar Ak Hira"]
[WhiteFideId "2104350"]
[BlackFideId "10500103"]
[WhiteElo "2283"]
[BlackElo "2184"]
[Result "0-1"]
[Round "01"]
[TimeControl "180+1"]
[Date "2022.11.16"]
[WhiteClock "0:00:06"]
[BlackClock "0:00:16"]

1. e4 {[%clk 0:03:00]}  c5 {[%clk 0:02:57]} 2. Nf3 {[%clk 0:02:58]}  Nc6 {[%clk 0:02:57]} 3. c3 {[%clk 0:02:58]}  d5 {[%clk 0:02:55]} 4. exd5 {[%clk 0:02:57]}  Qxd5 {[%clk 0:02:55]} 5. d4 {[%clk 0:02:57]}  cxd4 {[%clk 0:02:44]} 6. cxd4 {[%clk 0:02:56]}  e5 {[%clk 0:02:12]} 7. Nc3 {[%clk 0:02:54]}  Bb4 {[%clk 0:02:10]} 8. Bd2 {[%clk 0:02:50]}  Bxc3 {[%clk 0:02:07]} 9. Bxc3 {[%clk 0:02:46]}  e4 {[%clk 0:02:07]} 10. Nd2 {[%clk 0:02:44]}  Nf6 {[%clk 0:02:07]} 11. Bc4 {[%clk 0:02:43]}  Qg5 {[%clk 0:02:06]} 12. d5 {[%clk 0:02:40]}  Qxg2 {[%clk 0:02:01]} 13. Rf1 {[%clk 0:02:28]}  Ne7 {[%clk 0:01:56]} 14. Bxf6 {[%clk 0:02:08]}  gxf6 {[%clk 0:01:54]} 15. Bb5+ {[%clk 0:02:08]}  Kf8 {[%clk 0:01:50]} 16. d6 {[%clk 0:02:07]}  Nc6 {[%clk 0:01:45]} 17. Qh5 {[%clk 0:01:02]}  Bg4 {[%clk 0:01:39]} 18. Qh6+ {[%clk 0:01:02]}  Kg8 {[%clk 0:01:16]} 19. Qxf6 {[%clk 0:01:01]}  Nb4 {[%clk 0:00:59]} 20. Qc3 {[%clk 0:00:31]}  a5 {[%clk 0:00:50]} 21. d7 {[%clk 0:00:29]}  Rd8 {[%clk 0:00:45]} 22. a3 {[%clk 0:00:28]}  Nc6 {[%clk 0:00:21]} 23. Be2 {[%clk 0:00:17]}  Bxe2 {[%clk 0:00:19]} 24. Kxe2 {[%clk 0:00:18]}  Qg4+ {[%clk 0:00:17]} 25. f3 {[%clk 0:00:18]}  exf3+ {[%clk 0:00:17]} 26. Nxf3 {[%clk 0:00:19]}  Qxd7 {[%clk 0:00:14]} 27. Rg1+ {[%clk 0:00:18]}  Kf8 {[%clk 0:00:15]} 28. Qxh8+ {[%clk 0:00:19]}  Ke7 {[%clk 0:00:15]} 29. Rae1 {[%clk 0:00:17]}  Rxh8 {[%clk 0:00:13]} 30. Kf2+ {[%clk 0:00:17]}  Kf8 {[%clk 0:00:13]} 31. Re2 {[%clk 0:00:16]}  Qf5 {[%clk 0:00:13]} 32. Rge1 {[%clk 0:00:17]}  h5 {[%clk 0:00:13]} 33. Re4 {[%clk 0:00:16]}  Kg7 {[%clk 0:00:11]} 34. Rg1+ {[%clk 0:00:15]}  Kh6 {[%clk 0:00:10]} 35. Rh4 {[%clk 0:00:12]}  Ne5 {[%clk 0:00:08]} 36. Rg3 {[%clk 0:00:09]}  Nxf3 {[%clk 0:00:08]} 37. Rxf3 {[%clk 0:00:10]}  Qc2+ {[%clk 0:00:09]} 38. Kf1 {[%clk 0:00:07]}  Qd1+ {[%clk 0:00:09]} 39. Kf2 {[%clk 0:00:08]}  Qd2+ {[%clk 0:00:09]} 40. Kf1 {[%clk 0:00:08]}  Qc1+ {[%clk 0:00:10]} 41. Kf2 {[%clk 0:00:08]}  Qxb2+ {[%clk 0:00:10]} 42. Kf1 {[%clk 0:00:07]}  Qa1+ {[%clk 0:00:11]} 43. Kf2 {[%clk 0:00:07]}  Qa2+ {[%clk 0:00:11]} 44. Kf1 {[%clk 0:00:08]}  Qb1+ {[%clk 0:00:11]} 45. Kf2 {[%clk 0:00:08]}  Qc2+ {[%clk 0:00:11]} 46. Kf1 {[%clk 0:00:08]}  Rd8 {[%clk 0:00:11]} 47. Rf6+ {[%clk 0:00:04]}  Kg7 {[%clk 0:00:10]} 48. Rf2 {[%clk 0:00:05]}  Rd1+ {[%clk 0:00:10]} 49. Kg2 {[%clk 0:00:05]}  Rd2 {[%clk 0:00:11]} 50. Rf4 {[%clk 0:00:05]}  Rxf2+ {[%clk 0:00:10]} 51. Rxf2 {[%clk 0:00:06]}  Qxf2+ {[%clk 0:00:10]} 52. Kxf2 {[%clk 0:00:06]}  b5 {[%clk 0:00:11]} 53. Ke3 {[%clk 0:00:06]}  b4 {[%clk 0:00:11]} 54. axb4 {[%clk 0:00:06]}  axb4 {[%clk 0:00:12]} 55. Kd4 {[%clk 0:00:06]}  Kg6 {[%clk 0:00:13]} 56. Kc4 {[%clk 0:00:06]}  Kf5 {[%clk 0:00:12]} 57. Kxb4 {[%clk 0:00:06]}  Ke4 {[%clk 0:00:13]} 58. Kc4 {[%clk 0:00:07]}  f5 {[%clk 0:00:12]} 59. Kc3 {[%clk 0:00:04]}  Ke3 {[%clk 0:00:12]} 60. Kc2 {[%clk 0:00:04]}  Ke2 {[%clk 0:00:13]} 61. Kc3 {[%clk 0:00:02]}  f4 {[%clk 0:00:13]} 62. Kd4 {[%clk 0:00:03]}  f3 {[%clk 0:00:14]} 63. Ke4 {[%clk 0:00:03]}  f2 {[%clk 0:00:14]} 64. Kf4 {[%clk 0:00:03]}  f1=Q+ {[%clk 0:00:14]} 65. Kg5 {[%clk 0:00:04]}  Qh3 {[%clk 0:00:15]} 66. Kh6 {[%clk 0:00:03]}  Qxh2 {[%clk 0:00:15]} 67. Kg5 {[%clk 0:00:04]}  h4 {[%clk 0:00:15]} 68. Kg4 {[%clk 0:00:04]}  h3 {[%clk 0:00:16]} 69. Kh5 {[%clk 0:00:05]}  Qg2 {[%clk 0:00:16]} 70. Kh4 {[%clk 0:00:05]}  h2 {[%clk 0:00:16]} 71. Kh5 {[%clk 0:00:06]}  h1=Q# {[%clk 0:00:16]} 0-1


[Site "https://www.chess.com"]

[Event "Titled Tuesday Blitz November 15 Early 2022"]
[White "Przybylski, Wojciech"]
[Black "Vargas, Mauricio"]
[WhiteFideId "1117599"]
[BlackFideId "4404572"]
[WhiteElo "2221"]
[BlackElo "2025"]
[Result "1-0"]
[Round "01"]
[TimeControl "180+1"]
[Date "2022.11.16"]
[WhiteClock "0:01:03"]
[BlackClock "0:00:09"]

1. e4 {[%clk 0:02:58]}  d5 {[%clk 0:02:50]} 2. exd5 {[%clk 0:02:55]}  Qxd5 {[%clk 0:02:49]} 3. Qf3 {[%clk 0:02:51]}  Qa5 {[%clk 0:02:25]} 4. Qc3 {[%clk 0:02:49]}  Qb6 {[%clk 0:02:21]} 5. Qb3 {[%clk 0:02:43]}  Nd7 {[%clk 0:02:07]} 6. Nf3 {[%clk 0:02:40]}  Ngf6 {[%clk 0:02:07]} 7. d4 {[%clk 0:02:37]}  c6 {[%clk 0:02:06]} 8. Be3 {[%clk 0:02:34]}  Qc7 {[%clk 0:02:06]} 9. c4 {[%clk 0:02:30]}  e6 {[%clk 0:02:01]} 10. Nc3 {[%clk 0:02:25]}  Be7 {[%clk 0:01:50]} 11. Bd3 {[%clk 0:02:21]}  O-O {[%clk 0:01:39]} 12. O-O {[%clk 0:02:19]}  Ng4 {[%clk 0:01:34]} 13. Bd2 {[%clk 0:02:16]}  b6 {[%clk 0:01:28]} 14. h3 {[%clk 0:02:13]}  Ngf6 {[%clk 0:01:10]} 15. Rfe1 {[%clk 0:02:12]}  Bb7 {[%clk 0:01:04]} 16. Rad1 {[%clk 0:02:01]}  Rad8 {[%clk 0:01:00]} 17. Qc2 {[%clk 0:01:59]}  c5 {[%clk 0:00:47]} 18. Ne4 {[%clk 0:01:51]}  cxd4 {[%clk 0:00:41]} 19. Nxf6+ {[%clk 0:01:44]}  Bxf6 {[%clk 0:00:36]} 20. Bxh7+ {[%clk 0:01:40]}  Kh8 {[%clk 0:00:29]} 21. Be4 {[%clk 0:01:39]}  Nc5 {[%clk 0:00:19]} 22. Bxb7 {[%clk 0:01:08]}  Qxb7 {[%clk 0:00:17]} 23. Bf4 {[%clk 0:01:06]}  Rfe8 {[%clk 0:00:09]} 24. Be5 {[%clk 0:01:03]} 1-0


[Site "https://www.chess.com"]

[Event "Titled Tuesday Blitz November 15 Early 2022"]
[White "Quizon, Daniel"]
[Black "Ahn, Hongjin"]
[WhiteFideId "5217911"]
[BlackFideId "13201492"]
[WhiteElo "2380"]
[BlackElo "2182"]
[Result "1-0"]
[Round "01"]
[TimeControl "180+1"]
[Date "2022.11.16"]
[WhiteClock "0:00:24"]
[BlackClock "0:00:09"]

1. Nf3 {[%clk 0:02:59]}  Nf6 {[%clk 0:02:57]} 2. g3 {[%clk 0:02:55]}  g6 {[%clk 0:02:56]} 3. Bg2 {[%clk 0:02:56]}  Bg7 {[%clk 0:02:56]} 4. O-O {[%clk 0:02:50]}  O-O {[%clk 0:02:56]} 5. d4 {[%clk 0:02:51]}  d6 {[%clk 0:02:56]} 6. c4 {[%clk 0:02:51]}  Bf5 {[%clk 0:02:56]} 7. Nc3 {[%clk 0:02:51]}  Ne4 {[%clk 0:02:56]} 8. Nh4 {[%clk 0:02:45]}  Nxc3 {[%clk 0:02:51]} 9. bxc3 {[%clk 0:02:46]}  Bc8 {[%clk 0:02:52]} 10. e4 {[%clk 0:02:43]}  c6 {[%clk 0:02:52]} 11. f4 {[%clk 0:02:43]}  f5 {[%clk 0:02:52]} 12. exf5 {[%clk 0:02:42]}  gxf5 {[%clk 0:02:52]} 13. Be3 {[%clk 0:02:36]}  e6 {[%clk 0:02:53]} 14. d5 {[%clk 0:02:34]}  Bxc3 {[%clk 0:02:50]} 15. Rc1 {[%clk 0:02:32]}  Bg7 {[%clk 0:02:49]} 16. dxc6 {[%clk 0:02:26]}  Nxc6 {[%clk 0:02:48]} 17. Qd2 {[%clk 0:02:25]}  e5 {[%clk 0:02:42]} 18. fxe5 {[%clk 0:02:18]}  dxe5 {[%clk 0:02:39]} 19. Bd5+ {[%clk 0:02:18]}  Kh8 {[%clk 0:02:38]} 20. Bg5 {[%clk 0:02:16]}  Qb6+ {[%clk 0:02:36]} 21. Kh1 {[%clk 0:02:11]}  Nd4 {[%clk 0:02:35]} 22. c5 {[%clk 0:02:00]}  Qa6 {[%clk 0:02:21]} 23. Be7 {[%clk 0:01:55]}  Re8 {[%clk 0:01:57]} 24. Bd6 {[%clk 0:01:54]}  Be6 {[%clk 0:01:50]} 25. Bxe6 {[%clk 0:01:52]}  Rxe6 {[%clk 0:01:50]} 26. Nxf5 {[%clk 0:01:49]}  Qc6+ {[%clk 0:01:49]} 27. Kg1 {[%clk 0:01:33]}  Nf3+ {[%clk 0:01:36]} 28. Rxf3 {[%clk 0:01:32]}  Qxf3 {[%clk 0:01:37]} 29. Nxg7 {[%clk 0:01:26]}  Kxg7 {[%clk 0:01:37]} 30. Qg5+ {[%clk 0:01:27]}  Rg6 {[%clk 0:01:31]} 31. Qxe5+ {[%clk 0:01:27]}  Kg8 {[%clk 0:01:12]} 32. Rf1 {[%clk 0:01:25]}  Qd3 {[%clk 0:01:12]} 33. h4 {[%clk 0:01:11]}  Rd8 {[%clk 0:00:42]} 34. h5 {[%clk 0:01:04]}  Rg7 {[%clk 0:00:34]} 35. Qe6+ {[%clk 0:00:53]}  Kh8 {[%clk 0:00:33]} 36. Be5 {[%clk 0:00:34]}  Qe3+ {[%clk 0:00:27]} 37. Kg2 {[%clk 0:00:35]}  Qe2+ {[%clk 0:00:20]} 38. Rf2 {[%clk 0:00:30]}  Qe4+ {[%clk 0:00:13]} 39. Kh2 {[%clk 0:00:29]}  Qd5 {[%clk 0:00:08]} 40. Bxg7+ {[%clk 0:00:28]}  Kxg7 {[%clk 0:00:08]} 41. h6+ {[%clk 0:00:23]}  Kh8 {[%clk 0:00:08]} 42. Qf6+ {[%clk 0:00:23]}  Kg8 {[%clk 0:00:09]} 43. Qg7# {[%clk 0:00:24]} 1-0


[Site "https://www.chess.com"]

[Event "Titled Tuesday Blitz November 15 Early 2022"]
[White "Rangel, Daniel"]
[Black "Seo, Jung Min"]
[WhiteFideId "2124475"]
[BlackFideId "1734687"]
[WhiteElo "2225"]
[BlackElo "2455"]
[Result "1-0"]
[Round "01"]
[TimeControl "180+1"]
[Date "2022.11.16"]
[WhiteClock "0:00:16"]
[BlackClock "0:00:12"]

1. c4 {[%clk 0:03:00]}  Nf6 {[%clk 0:02:23]} 2. g3 {[%clk 0:02:55]}  e6 {[%clk 0:02:24]} 3. Bg2 {[%clk 0:02:55]}  d5 {[%clk 0:02:23]} 4. cxd5 {[%clk 0:02:50]}  exd5 {[%clk 0:02:22]} 5. b3 {[%clk 0:02:41]}  Be7 {[%clk 0:02:20]} 6. Bb2 {[%clk 0:02:42]}  O-O {[%clk 0:02:20]} 7. e3 {[%clk 0:02:41]}  Bf5 {[%clk 0:02:19]} 8. Ne2 {[%clk 0:02:40]}  Nbd7 {[%clk 0:02:19]} 9. O-O {[%clk 0:02:40]}  Nc5 {[%clk 0:02:16]} 10. d4 {[%clk 0:02:31]}  Nd3 {[%clk 0:02:12]} 11. Ba3 {[%clk 0:02:24]}  Nb4 {[%clk 0:02:11]} 12. Bxb4 {[%clk 0:02:21]}  Bxb4 {[%clk 0:02:10]} 13. a3 {[%clk 0:02:21]}  Bd6 {[%clk 0:02:10]} 14. Nbc3 {[%clk 0:02:19]}  c6 {[%clk 0:02:10]} 15. b4 {[%clk 0:02:19]}  a6 {[%clk 0:02:09]} 16. Qb3 {[%clk 0:02:18]}  h5 {[%clk 0:02:08]} 17. a4 {[%clk 0:02:14]}  h4 {[%clk 0:02:02]} 18. b5 {[%clk 0:02:12]}  h3 {[%clk 0:02:01]} 19. Bh1 {[%clk 0:02:11]}  axb5 {[%clk 0:02:01]} 20. axb5 {[%clk 0:02:10]}  Rc8 {[%clk 0:01:58]} 21. Ra7 {[%clk 0:02:03]}  Qb6 {[%clk 0:01:54]} 22. Rfa1 {[%clk 0:01:56]}  Rfe8 {[%clk 0:01:47]} 23. Qa4 {[%clk 0:01:43]}  Ng4 {[%clk 0:01:36]} 24. Qa5 {[%clk 0:01:36]}  Qxa5 {[%clk 0:01:35]} 25. R7xa5 {[%clk 0:01:23]}  Bd3 {[%clk 0:01:19]} 26. b6 {[%clk 0:01:13]}  Re7 {[%clk 0:01:13]} 27. Ra8 {[%clk 0:01:10]}  Rxa8 {[%clk 0:01:13]} 28. Rxa8+ {[%clk 0:01:10]}  Kh7 {[%clk 0:01:13]} 29. Bf3 {[%clk 0:01:07]}  f5 {[%clk 0:01:13]} 30. Nf4 {[%clk 0:00:57]}  Bc2 {[%clk 0:00:52]} 31. Nxh3 {[%clk 0:00:51]}  Nf6 {[%clk 0:00:44]} 32. Ng5+ {[%clk 0:00:48]}  Kg6 {[%clk 0:00:45]} 33. h4 {[%clk 0:00:49]}  Ne4 {[%clk 0:00:43]} 34. Ncxe4 {[%clk 0:00:48]}  dxe4 {[%clk 0:00:41]} 35. Be2 {[%clk 0:00:45]}  Bb4 {[%clk 0:00:27]} 36. Bc4 {[%clk 0:00:44]}  Bd3 {[%clk 0:00:25]} 37. Ra4 {[%clk 0:00:31]}  Bc3 {[%clk 0:00:18]} 38. Bxd3 {[%clk 0:00:25]}  exd3 {[%clk 0:00:17]} 39. Kf1 {[%clk 0:00:25]}  Rd7 {[%clk 0:00:14]} 40. Nf3 {[%clk 0:00:24]}  Rd5 {[%clk 0:00:13]} 41. Ne5+ {[%clk 0:00:23]}  Kh5 {[%clk 0:00:12]} 42. Nxd3 {[%clk 0:00:23]}  Rb5 {[%clk 0:00:13]} 43. Ra3 {[%clk 0:00:18]}  Bd2 {[%clk 0:00:12]} 44. Ke2 {[%clk 0:00:16]} 1-0


[Site "https://www.chess.com"]

[Event "Titled Tuesday Blitz November 15 Early 2022"]
[White "Rohith Krishna S"]
[Black "Van Foreest, Machteld"]
[WhiteFideId "46617051"]
[BlackFideId "1051563"]
[WhiteElo "2270"]
[BlackElo "2018"]
[Result "1-0"]
[Round "01"]
[TimeControl "180+1"]
[Date "2022.11.16"]
[WhiteClock "0:00:19"]
[BlackClock "0:00:13"]

1. e4 {[%clk 0:02:57]}  c5 {[%clk 0:02:58]} 2. g3 {[%clk 0:02:52]}  e6 {[%clk 0:02:56]} 3. Bg2 {[%clk 0:02:53]}  d5 {[%clk 0:02:56]} 4. exd5 {[%clk 0:02:52]}  exd5 {[%clk 0:02:56]} 5. d4 {[%clk 0:02:53]}  Nf6 {[%clk 0:02:55]} 6. Ne2 {[%clk 0:02:52]}  Be7 {[%clk 0:02:51]} 7. O-O {[%clk 0:02:44]}  O-O {[%clk 0:02:51]} 8. Nbc3 {[%clk 0:02:20]}  Be6 {[%clk 0:02:27]} 9. Bg5 {[%clk 0:02:03]}  Nc6 {[%clk 0:02:17]} 10. Rb1 {[%clk 0:01:49]}  Qd7 {[%clk 0:01:58]} 11. dxc5 {[%clk 0:01:47]}  Rfd8 {[%clk 0:01:43]} 12. Nf4 {[%clk 0:01:43]}  d4 {[%clk 0:01:33]} 13. Bxf6 {[%clk 0:01:43]}  gxf6 {[%clk 0:01:23]} 14. Ncd5 {[%clk 0:01:38]}  Bg4 {[%clk 0:00:48]} 15. Qd2 {[%clk 0:01:29]}  Ne5 {[%clk 0:00:44]} 16. Qxd4 {[%clk 0:01:18]}  Rac8 {[%clk 0:00:34]} 17. b4 {[%clk 0:01:17]}  Kf8 {[%clk 0:00:24]} 18. Rfe1 {[%clk 0:01:09]}  b6 {[%clk 0:00:21]} 19. Rxe5 {[%clk 0:00:54]}  bxc5 {[%clk 0:00:19]} 20. Qa1 {[%clk 0:00:50]}  fxe5 {[%clk 0:00:19]} 21. Qxe5 {[%clk 0:00:50]}  f6 {[%clk 0:00:19]} 22. Nxf6 {[%clk 0:00:48]}  Bxf6 {[%clk 0:00:19]} 23. Qxf6+ {[%clk 0:00:49]}  Qf7 {[%clk 0:00:19]} 24. Qh6+ {[%clk 0:00:48]}  Qg7 {[%clk 0:00:19]} 25. Qa6 {[%clk 0:00:38]}  Kg8 {[%clk 0:00:19]} 26. h3 {[%clk 0:00:34]}  Bf5 {[%clk 0:00:19]} 27. g4 {[%clk 0:00:31]}  Bxc2 {[%clk 0:00:18]} 28. Qc4+ {[%clk 0:00:30]}  Qf7 {[%clk 0:00:17]} 29. Qxc2 {[%clk 0:00:21]}  Qxf4 {[%clk 0:00:17]} 30. bxc5 {[%clk 0:00:22]}  Rd2 {[%clk 0:00:16]} 31. Qb3+ {[%clk 0:00:22]}  Kh8 {[%clk 0:00:16]} 32. Qc3+ {[%clk 0:00:21]}  Kg8 {[%clk 0:00:16]} 33. Rf1 {[%clk 0:00:19]}  Rcd8 {[%clk 0:00:14]} 34. c6 {[%clk 0:00:19]}  Qd4 {[%clk 0:00:13]} 35. Qb3+ {[%clk 0:00:19]}  Qd5 {[%clk 0:00:13]} 36. Bxd5+ {[%clk 0:00:19]} 1-0


[Site "https://www.chess.com"]

[Event "Titled Tuesday Blitz November 15 Early 2022"]
[White "Ronka, Erik"]
[Black "Pranav, V"]
[WhiteFideId "505080"]
[BlackFideId "25060783"]
[WhiteElo "2264"]
[BlackElo "2430"]
[Result "1-0"]
[Round "01"]
[TimeControl "180+1"]
[Date "2022.11.15"]
[WhiteClock "0:00:06"]
[BlackClock "0:00:01"]

1. e4 {[%clk 0:02:59]}  c5 {[%clk 0:02:58]} 2. Nf3 {[%clk 0:02:59]}  Nc6 {[%clk 0:02:59]} 3. d4 {[%clk 0:02:59]}  cxd4 {[%clk 0:02:58]} 4. Nxd4 {[%clk 0:03:00]}  Nf6 {[%clk 0:02:59]} 5. Nc3 {[%clk 0:03:00]}  e5 {[%clk 0:02:59]} 6. Ndb5 {[%clk 0:03:01]}  d6 {[%clk 0:03:00]} 7. Bg5 {[%clk 0:03:01]}  a6 {[%clk 0:02:59]} 8. Na3 {[%clk 0:03:02]}  b5 {[%clk 0:02:59]} 9. Bxf6 {[%clk 0:03:03]}  gxf6 {[%clk 0:02:59]} 10. Nd5 {[%clk 0:03:04]}  f5 {[%clk 0:03:00]} 11. Bd3 {[%clk 0:03:04]}  Be6 {[%clk 0:03:00]} 12. c3 {[%clk 0:03:05]}  Bg7 {[%clk 0:02:58]} 13. Nxb5 {[%clk 0:03:05]}  axb5 {[%clk 0:02:58]} 14. Bxb5 {[%clk 0:03:06]}  Bd7 {[%clk 0:02:58]} 15. exf5 {[%clk 0:03:06]}  O-O {[%clk 0:02:58]} 16. O-O {[%clk 0:03:06]}  e4 {[%clk 0:02:56]} 17. a4 {[%clk 0:03:04]}  Ne5 {[%clk 0:02:51]} 18. f6 {[%clk 0:02:52]}  Bxf6 {[%clk 0:02:24]} 19. Nxf6+ {[%clk 0:02:50]}  Qxf6 {[%clk 0:02:25]} 20. Bxd7 {[%clk 0:02:50]}  Kh8 {[%clk 0:02:25]} 21. Bh3 {[%clk 0:02:26]}  Rg8 {[%clk 0:02:23]} 22. Kh1 {[%clk 0:02:19]}  Nd3 {[%clk 0:01:57]} 23. Qe2 {[%clk 0:01:56]}  Rae8 {[%clk 0:01:51]} 24. g3 {[%clk 0:01:49]}  d5 {[%clk 0:01:45]} 25. Rad1 {[%clk 0:01:25]}  Rb8 {[%clk 0:01:33]} 26. Rd2 {[%clk 0:01:18]}  Qh6 {[%clk 0:01:21]} 27. Bg2 {[%clk 0:01:15]}  Rg7 {[%clk 0:01:10]} 28. b4 {[%clk 0:01:06]}  Qa6 {[%clk 0:00:56]} 29. f3 {[%clk 0:00:52]}  f5 {[%clk 0:00:55]} 30. fxe4 {[%clk 0:00:52]}  fxe4 {[%clk 0:00:56]} 31. a5 {[%clk 0:00:51]}  Qc4 {[%clk 0:00:54]} 32. Rc2 {[%clk 0:00:41]}  Rc8 {[%clk 0:00:53]} 33. Bh3 {[%clk 0:00:26]}  Rd8 {[%clk 0:00:47]} 34. Qd2 {[%clk 0:00:17]}  Re8 {[%clk 0:00:41]} 35. Qe3 {[%clk 0:00:15]}  Rc7 {[%clk 0:00:25]} 36. Qh6 {[%clk 0:00:14]}  Rg7 {[%clk 0:00:19]} 37. Qd6 {[%clk 0:00:12]}  Ne5 {[%clk 0:00:18]} 38. Rf8+ {[%clk 0:00:11]}  Rxf8 {[%clk 0:00:15]} 39. Qxf8+ {[%clk 0:00:12]}  Rg8 {[%clk 0:00:13]} 40. Qf6+ {[%clk 0:00:12]}  Rg7 {[%clk 0:00:14]} 41. Qxe5 {[%clk 0:00:13]}  h6 {[%clk 0:00:08]} 42. Rf2 {[%clk 0:00:11]}  Kg8 {[%clk 0:00:05]} 43. Be6+ {[%clk 0:00:10]}  Kh7 {[%clk 0:00:04]} 44. Rf8 {[%clk 0:00:11]}  Rg6 {[%clk 0:00:01]} 45. Qf5 {[%clk 0:00:06]} 1-0


[Site "https://www.chess.com"]